fUSD/lending_fUSD_20240620
["ID","MTS","AMOUNT","RATE_DAILY","PERIOD"]
[329937699,1718848244174,-501.67013732,0.00013698,2]
[329937700,1718848244183,-505.50684336,0.00013698,2]
[329937701,1718848244192,-505.9402776,0.00013698,2]
[329937702,1718848244201,-524.06312776,0.00013698,2]
[329937703,1718848244210,-503.67101628,0.00013698,2]
[329937704,1718848244220,-502.15525055,0.00013698,2]
[329937705,1718848244230,-504.63230349,0.00013698,2]
[329937706,1718848244239,-500.0,0.00013698,2]
[329937707,1718848244247,-507.91931793,0.00013698,2]
[329937708,1718848244257,-500.51503499,0.00013698,2]
[329937709,1718848244266,-500.0,0.00013698,2]
[329937713,1718848244275,-167.49511157,0.00013698,2]
[329937716,1718848244286,-506.57275985,0.00013698,2]
[329937719,1718848244296,-1288.05,0.00013698,2]
[329937723,1718848244305,-502.42039969,0.00013698,2]
[329937726,1718848244314,-506.99472416,0.00013698,2]
[329937729,1718848244323,-504.56150043,0.00013698,2]
[329937732,1718848244332,-501.19427238,0.00013698,2]
[329937735,1718848244341,-503.58610127,0.00013698,2]
[329937738,1718848244350,-504.10855456,0.00013698,2]
[329937741,1718848244360,-506.82932215,0.00013698,2]
[329937744,1718848244369,-501.05200675,0.00013698,2]
[329937747,1718848244378,-504.22304521,0.00013698,2]
[329937750,1718848244387,-501.53530772,0.00013698,2]
[329937753,1718848244396,-505.01106902,0.00013698,2]
[329937756,1718848244405,-504.96003704,0.00013698,2]
[329937758,1718848244414,-528.28,0.00013698,2]
[329937760,1718848244424,-502.55043785,0.00013698,2]
[329937762,1718848244433,-581.55,0.00013698,2]
[329937764,1718848244442,-500.92468861,0.00013698,2]
[329937766,1718848244451,-901.6,0.00013698,2]
[329937767,1718848244461,-500.55408598,0.00013698,2]
[329937770,1718848244475,-673.9,0.00013698,2]
[329937771,1718848244484,-506.41997691,0.00013698,2]
[329937772,1718848244494,-564.3818642,0.00013698,2]
[329937773,1718848244503,-500.53673732,0.00013698,2]
[329937774,1718848244513,-502.98848768,0.00013698,2]
[329937775,1718848244523,-828.45,0.00013698,2]
[329937776,1718848244533,-503.67963093,0.00013698,2]
[329937777,1718848244542,-502.41632518,0.00013698,2]
[329937778,1718848244551,-502.98419399,0.00013698,2]
[329937779,1718848244563,-502.51990482,0.00013698,2]
[329937780,1718848244572,-500.0,0.00013698,2]
[329937781,1718848244581,-501.89474691,0.00013698,2]
[329937782,1718848244591,-500.0,0.00013698,2]
[329937783,1718848244600,-500.0,0.00013698,2]
[329937784,1718848244610,-502.00182075,0.00013698,2]
[329937785,1718848244619,-501.06627542,0.00013698,2]
[329937786,1718848244629,-883.58,0.00013698,2]
[329937787,1718848244638,-501.54464615,0.00013698,2]
[329937788,1718848244648,-506.66535265,0.00013698,2]
[329937789,1718848244658,-500.0,0.00013698,2]
[329937790,1718848244668,-502.1167494,0.00013698,2]
[329937791,1718848244677,-503.67332241,0.00013698,2]
[329937792,1718848244687,-510.10900147,0.00013698,2]
[329937793,1718848244696,-722.82,0.00013698,2]
[329937794,1718848244706,-504.37523887,0.00013698,2]
[329937795,1718848244715,-505.09008939,0.00013698,2]
[329937796,1718848244724,-500.0,0.00013698,2]
[329937797,1718848244733,-500.0,0.00013698,2]
[329937798,1718848244743,-502.35943379,0.00013698,2]
[329937799,1718848244752,-500.0,0.00013698,2]
[329937800,1718848244762,-506.4703771,0.00013698,2]
[329937801,1718848244771,-501.20712067,0.00013698,2]
[329937802,1718848244782,-1510.04,0.00013698,2]
[329937803,1718848244792,-504.2121087,0.00013698,2]
[329937804,1718848244802,-500.48903781,0.00013698,2]
[329937805,1718848244811,-500.0,0.00013698,2]
[329937806,1718848244820,-1191.81,0.00013698,2]
[329937807,1718848244829,-502.57497887,0.00013698,2]
[329937808,1718848244838,-500.0,0.00013698,2]
[329937809,1718848244847,-517.72443677,0.00013698,2]
[329937810,1718848244857,-538.41,0.00013698,2]
[329937811,1718848244867,-618.29333798,0.00013698,2]
[329937812,1718848244876,-504.31717579,0.00013698,2]
[329937813,1718848244885,-500.78802438,0.00013698,2]
[329937814,1718848244895,-507.17353508,0.00013698,2]
[329937815,1718848244904,-500.0,0.00013698,2]
[329937816,1718848244913,-293.23218325,0.00013698,2]
[329937817,1718848244923,-502.18207968,0.00013698,2]
[329937818,1718848244932,-500.0,0.00013698,2]
[329937819,1718848244941,-503.72534947,0.00013698,2]
[329937820,1718848244950,-584.47,0.00013698,2]
[329937821,1718848244959,-502.39788688,0.00013698,2]
[329937822,1718848244968,-500.46312003,0.00013698,2]
[329937823,1718848244978,-503.91010917,0.00013698,2]
[329937824,1718848244987,-501.23198533,0.00013698,2]
[329937825,1718848244997,-501.09870594,0.00013698,2]
[329937826,1718848245006,-505.25103605,0.00013698,2]
[329937827,1718848245016,-986.2,0.00013698,2]
[329937828,1718848245024,-506.36312807,0.00013698,2]
[329937829,1718848245035,-506.16771442,0.00013698,2]
[329937830,1718848245044,-500.63947397,0.00013698,2]
[329937831,1718848245053,-507.72132422,0.00013698,2]
[329937832,1718848245063,-500.0,0.00013698,2]
[329937833,1718848245071,-778.59,0.00013698,2]
[329937834,1718848245080,-500.0,0.00013698,2]
[329937835,1718848245089,-1088.29,0.00013698,2]
[329937836,1718848245098,-505.94626002,0.00013698,2]
[329937837,1718848245107,-505.43092143,0.00013698,2]
[329937838,1718848245116,-500.65381614,0.00013698,2]
[329937839,1718848245125,-505.60237312,0.00013698,2]
[329937840,1718848245134,-935.74,0.00013698,2]
[329937841,1718848245143,-502.52086262,0.00013698,2]
[329937842,1718848245152,-501.81539188,0.00013698,2]
[329937843,1718848245161,-504.77452536,0.00013698,2]
[329937844,1718848245170,-505.39549466,0.00013698,2]
[329937845,1718848245179,-502.29490033,0.00013698,2]
[329937846,1718848245188,-507.94397212,0.00013698,2]
[329937847,1718848245197,-504.56490456,0.00013698,2]
[329937848,1718848245206,-502.20036379,0.00013698,2]
[329937849,1718848245215,-502.83079437,0.00013698,2]
[329937850,1718848245224,-525.7682799,0.00013698,2]
[329937851,1718848245233,-1246.73,0.00013698,2]
[329937852,1718848245243,-762.66,0.00013698,2]
[329937853,1718848245253,-509.41914224,0.00013698,2]
[329937854,1718848245262,-503.96889691,0.00013698,2]
[329937855,1718848245271,-503.66902064,0.00013698,2]
[329937856,1718848245283,-500.0,0.00013698,2]
[329937857,1718848245292,-752.04,0.00013698,2]
[329937858,1718848245301,-2165.49,0.00013698,2]
[329937859,1718848245310,-502.53969951,0.00013698,2]
[329937860,1718848245320,-500.0,0.00013698,2]
[329937861,1718848245329,-500.52851989,0.00013698,2]
[329937862,1718848245338,-517.45279824,0.00013698,2]
[329937863,1718848245347,-501.1994228,0.00013698,2]
[329937864,1718848245358,-500.0,0.00013698,2]
[329937865,1718848245367,-1139.78,0.00013698,2]
[329937866,1718848245377,-501.67965596,0.00013698,2]
[329937867,1718848245386,-508.76303188,0.00013698,2]
[329937868,1718848245396,-502.25362455,0.00013698,2]
[329937869,1718848245405,-553.37,0.00013698,2]
[329937870,1718848245415,-502.52216141,0.00013698,2]
[329937871,1718848245424,-500.0,0.00013698,2]
[329937872,1718848245434,-508.08966446,0.00013698,2]
[329937873,1718848245443,-501.27095909,0.00013698,2]
[329937874,1718848245453,-502.6884495,0.00013698,2]
[329937875,1718848245463,-505.76278916,0.00013698,2]
[329937876,1718848245472,-1313.25,0.00013698,2]
[329937877,1718848245486,-500.46021899,0.00013698,2]
[329937878,1718848245495,-502.45655849,0.00013698,2]
[329937879,1718848245505,-913.64,0.00013698,2]
[329937880,1718848245514,-507.04644583,0.00013698,2]
[329937881,1718848245525,-670.14,0.00013698,2]
[329937882,1718848245536,-506.02089826,0.00013698,2]
[329937883,1718848245545,-503.35320769,0.00013698,2]
[329937884,1718848245554,-618.17,0.00013698,2]
[329937885,1718848245565,-590.56,0.00013698,2]
[329937886,1718848245574,-501.47034698,0.00013698,2]
[329937887,1718848245583,-502.25123807,0.00013698,2]
[329937888,1718848245592,-500.0,0.00013698,2]
[329937889,1718848245601,-501.88346043,0.00013698,2]
[329937890,1718848245610,-506.66079263,0.00013698,2]
[329937891,1718848245620,-502.08175466,0.00013698,2]
[329937892,1718848245629,-505.28499641,0.00013698,2]
[329937893,1718848245638,-502.50380698,0.00013698,2]
[329937894,1718848245647,-501.91852016,0.00013698,2]
[329937895,1718848245657,-501.33441939,0.00013698,2]
[329937896,1718848245666,-500.0,0.00013698,2]
[329937897,1718848245675,-500.0,0.00013698,2]
[329937898,1718848245685,-501.26287451,0.00013698,2]
[329937899,1718848245694,-812.98,0.00013698,2]
[329937900,1718848245704,-680.35,0.00013698,2]
[329937901,1718848245713,-502.46101411,0.00013698,2]
[329937902,1718848245722,-500.0,0.00013698,2]
[329937903,1718848245731,-979.37,0.00013698,2]
[329937904,1718848245741,-501.52035267,0.00013698,2]
[329937905,1718848245750,-502.52205972,0.00013698,2]
[329937906,1718848245759,-701.65,0.00013698,2]
[329937907,1718848245769,-516.86,0.00013698,2]
[329937908,1718848245779,-502.95966283,0.00013698,2]
[329937909,1718848245789,-501.73244256,0.00013698,2]
[329937910,1718848245799,-500.91118367,0.00013698,2]
[329937911,1718848245808,-504.90867003,0.00013698,2]
[329937912,1718848245817,-1233.05,0.00013698,2]
[329937913,1718848245826,-500.0,0.00013698,2]
[329937914,1718848245836,-501.9359468,0.00013698,2]
[329937915,1718848245845,-500.0,0.00013698,2]
[329937916,1718848245854,-500.0,0.00013698,2]
[329937917,1718848245863,-576.61,0.00013698,2]
[329937918,1718848245873,-501.30042392,0.00013698,2]
[329937919,1718848245882,-727.24,0.00013698,2]
[329937920,1718848245892,-506.84657111,0.00013698,2]
[329937921,1718848245901,-1030.03,0.00013698,2]
[329937922,1718848245910,-1103.93,0.00013698,2]
[329937923,1718848245920,-504.85549271,0.00013698,2]
[329937924,1718848245929,-502.2292709,0.00013698,2]
[329937925,1718848245939,-506.38047073,0.00013698,2]
[329937926,1718848245948,-500.0,0.00013698,2]
[329937927,1718848245957,-500.0,0.00013698,2]
[329937928,1718848245967,-501.42822727,0.00013698,2]
[329937929,1718848245976,-500.0,0.00013698,2]
[329937930,1718848245986,-500.0,0.00013698,2]
[329937931,1718848245995,-500.0,0.00013698,2]
[329937932,1718848246004,-502.07151546,0.00013698,2]
[329937933,1718848246015,-500.0,0.00013698,2]
[329937934,1718848246026,-504.17586874,0.00013698,2]
[329937935,1718848246039,-506.06350424,0.00013698,2]
[329937936,1718848246047,-513.93153819,0.00013698,2]
[329937937,1718848246056,-501.34886661,0.00013698,2]
[329937938,1718848246065,-572.09,0.00013698,2]
[329937939,1718848246074,-501.94380719,0.00013698,2]
[329937940,1718848246083,-500.0,0.00013698,2]
[329937941,1718848246092,-503.18151325,0.00013698,2]
[329937942,1718848246103,-505.57204152,0.00013698,2]
[329937943,1718848246114,-679.42,0.00013698,2]
[329937944,1718848246123,-504.4654862,0.00013698,2]
[329937945,1718848246133,-719.67,0.00013698,2]
[329937946,1718848246143,-508.57787837,0.00013698,2]
[329937947,1718848246153,-500.59534819,0.00013698,2]
[329937948,1718848246163,-509.28232432,0.00013698,2]
[329937949,1718848246174,-509.14659544,0.00013698,2]
[329937950,1718848246184,-2005.40661452,0.00013698,2]
[329937951,1718848246193,-502.13675011,0.00013698,2]
[329937952,1718848246203,-500.0,0.00013698,2]
[329937953,1718848246212,-500.96378193,0.00013698,2]
[329937954,1718848246222,-500.96691102,0.00013698,2]
[329937955,1718848246231,-513.34736896,0.00013698,2]
[329937956,1718848246242,-502.02180123,0.00013698,2]
[329937957,1718848246251,-511.6701655,0.00013698,2]
[329937958,1718848246260,-500.0,0.00013698,2]
[329937959,1718848246271,-505.14222045,0.00013698,2]
[329937960,1718848246280,-503.69955461,0.00013698,2]
[329937961,1718848246292,-503.28526137,0.00013698,2]
[329937962,1718848246302,-502.31840183,0.00013698,2]
[329937963,1718848246312,-587.31083255,0.00013698,2]
[329937964,1718848246323,-505.28753084,0.00013698,2]
[329937965,1718848246333,-500.0,0.00013698,2]
[329937966,1718848246343,-506.08129813,0.00013698,2]
[329937967,1718848246352,-500.0,0.00013698,2]
[329937968,1718848246363,-502.35966607,0.00013698,2]
[329937969,1718848246374,-502.34007761,0.00013698,2]
[329937970,1718848246386,-500.0,0.00013698,2]
[329937972,1718848246395,-1175.6,0.00013698,2]
[329937975,1718848246404,-505.76097484,0.00013698,2]
[329937978,1718848246414,-500.0,0.00013698,2]
[329937980,1718848246423,-500.0,0.00013698,2]
[329937982,1718848246432,-500.0,0.00013698,2]
[329937984,1718848246441,-1035.04,0.00013698,2]
[329937986,1718848246450,-502.42644697,0.00013698,2]
[329937988,1718848246459,-501.34246584,0.00013698,2]
[329937989,1718848246474,-504.02356931,0.00013698,2]
[329937991,1718848246483,-500.0,0.00013698,2]
[329937993,1718848246492,-500.0,0.00013698,2]
[329937995,1718848246502,-502.25807015,0.00013698,2]
[329937997,1718848246512,-485.23898612,0.00013698,2]
[329937999,1718848246521,-504.27491053,0.00013698,2]
[329938000,1718848246534,-505.50802783,0.00013698,2]
[329938001,1718848246544,-505.18564802,0.00013698,2]
[329938002,1718848246553,-501.14251603,0.00013698,2]
[329938003,1718848246562,-501.39930865,0.00013698,2]
[329938004,1718848246571,-835.1,0.00013698,2]
[329938005,1718848246580,-548.0,0.00013698,2]
[329938006,1718848246590,-500.0,0.00013698,2]
[329938007,1718848246599,-899.68,0.00013698,2]
[329938008,1718848246608,-502.39650008,0.00013698,2]
[329938009,1718848246617,-503.42435731,0.00013698,2]
[329938010,1718848246627,-506.66990565,0.00013698,2]
[329938011,1718848246637,-506.84455427,0.00013698,5]
[329938012,1718848246647,-506.00278018,0.00013698,2]
[329938013,1718848246656,-507.07174173,0.00013698,2]
[329938014,1718848246665,-252.77774741,0.00013698,2]
[329938015,1718848246674,-501.18461401,0.00013698,2]
[329938016,1718848246683,-502.75264335,0.00013698,2]
[329938017,1718848246692,-503.56522577,0.00013698,2]
[329938018,1718848246701,-500.0,0.00013698,2]
[329938019,1718848246711,-503.07664476,0.00013698,2]
[329938020,1718848246720,-505.41323968,0.00013698,2]
[329938021,1718848246731,-971.94,0.00013698,2]
[329938022,1718848246741,-502.45331782,0.00013698,2]
[329938023,1718848246750,-502.25448911,0.00013698,2]
[329938024,1718848246760,-506.95885877,0.00013698,2]
[329938025,1718848246769,-416.06,0.00013698,2]
[329938026,1718848246778,-500.0,0.00013698,2]
[329938027,1718848247022,-501.86167525,0.00013698,2]
[329938028,1718848247033,-510.84720506,0.00013698,2]
[329938029,1718848247043,-611.07,0.00013698,2]
[329938030,1718848247052,-500.0,0.00013698,2]
[329938031,1718848247061,-1033.79,0.00013698,2]
[329938033,1718848247071,-504.05686291,0.00013698,2]
[329938035,1718848247081,-500.77360139,0.00013698,2]
[329938037,1718848247092,-506.58747163,0.00013698,2]
[329938038,1718848247102,-501.22050829,0.00013698,2]
[329938039,1718848247112,-500.4498801,0.00013698,2]
[329938040,1718848247121,-519.91683589,0.00013698,2]
[329938041,1718848247131,-500.0,0.00013698,2]
[329938042,1718848247141,-500.0,0.00013698,2]
[329938043,1718848247151,-688.74,0.00013698,2]
[329938044,1718848247160,-506.77332443,0.00013698,2]
[329938045,1718848247170,-503.60733975,0.00013698,2]
[329938046,1718848247183,-501.93822977,0.00013698,2]
[329938047,1718848247194,-1471.49,0.00013698,2]
[329938048,1718848247204,-500.0,0.00013698,2]
[329938049,1718848247214,-507.81234536,0.00013698,2]
[329938050,1718848247225,-507.93345308,0.00013698,2]
[329938051,1718848247234,-503.48903939,0.00013698,2]
[329938052,1718848247244,-501.97082253,0.00013698,2]
[329938053,1718848247254,-509.34668053,0.00013698,2]
[329938054,1718848247264,-586.95,0.00013698,2]
[329938055,1718848247276,-509.30230942,0.00013698,2]
[329938056,1718848247287,-815.6,0.00013698,2]
[329938057,1718848247296,-501.59990954,0.00013698,2]
[329938058,1718848247305,-506.6720736,0.00013698,2]
[329938059,1718848247314,-500.0,0.00013698,2]
[329938060,1718848247325,-500.0,0.00013698,2]
[329938061,1718848247335,-505.54992528,0.00013698,2]
[329938062,1718848247344,-500.74763339,0.00013698,2]
[329938063,1718848247354,-500.50754274,0.00013698,2]
[329938064,1718848247365,-500.0,0.00013698,2]
[329938065,1718848247375,-500.0,0.00013698,2]
[329938066,1718848247385,-1535.55,0.00013698,2]
[329938067,1718848247395,-500.0,0.00013698,2]
[329938068,1718848247404,-500.0,0.00013698,2]
[329938069,1718848247414,-500.0,0.00013698,2]
[329938070,1718848247423,-504.88217565,0.00013698,2]
[329938071,1718848247433,-500.0,0.00013698,2]
[329938072,1718848247442,-515.56421512,0.00013698,2]
[329938073,1718848247452,-506.7553118,0.00013698,2]
[329938074,1718848247466,-500.91081266,0.00013698,2]
[329938075,1718848247477,-802.36,0.00013698,2]
[329938076,1718848247489,-501.55653135,0.00013698,2]
[329938077,1718848247498,-506.77299382,0.00013698,2]
[329938078,1718848247508,-507.01032069,0.00013698,2]
[329938079,1718848247520,-919.48,0.00013698,2]
[329938080,1718848247530,-526.79120854,0.00013698,2]
[329938081,1718848247544,-500.0,0.00013698,2]
[329938082,1718848247553,-506.94053461,0.00013698,2]
[329938083,1718848247562,-1302.75,0.00013698,2]
[329938084,1718848247571,-501.28108011,0.00013698,2]
[329938085,1718848247580,-501.55184637,0.00013698,2]
[329938086,1718848247589,-862.02,0.00013698,2]
[329938087,1718848247599,-520.72744551,0.00013698,2]
[329938088,1718848247609,-504.76187767,0.00013698,2]
[329938089,1718848247620,-514.50429449,0.00013698,2]
[329938090,1718848247630,-500.0,0.00013698,2]
[329938091,1718848247641,-501.30994789,0.00013698,2]
[329938092,1718848247652,-308.44554234,0.00013698,2]
[329938093,1718848247662,-503.74689782,0.00013698,2]
[329938094,1718848247672,-502.36894784,0.00013698,2]
[329938095,1718848247681,-508.79406534,0.00013698,2]
[329938096,1718848247690,-503.4569911,0.00013698,2]
[329938097,1718848247701,-500.72923732,0.00013698,2]
[329938098,1718848247711,-500.82451163,0.00013698,2]
[329938099,1718848247720,-500.0,0.00013698,2]
[329938100,1718848247729,-502.48521937,0.00013698,2]
[329938101,1718848247739,-500.69770794,0.00013698,2]
[329938102,1718848247748,-960.63,0.00013698,2]
[329938103,1718848247758,-646.72544086,0.00013698,2]
[329938104,1718848247767,-505.4206942,0.00013698,2]
[329938105,1718848247776,-505.25487727,0.00013698,2]
[329938106,1718848247787,-502.17379745,0.00013698,2]
[329938107,1718848247796,-501.51952261,0.00013698,2]
[329938108,1718848247806,-706.7,0.00013698,2]
[329938109,1718848247815,-500.0,0.00013698,2]
[329938110,1718848247825,-1217.22,0.00013698,2]
[329938111,1718848247834,-246.66571482,0.00013698,2]
[329938112,1718848247843,-508.56574308,0.00013698,2]
[329938113,1718848247852,-502.43948635,0.00013698,2]
[329938114,1718848247862,-509.7706941,0.00013698,2]
[329938115,1718848247871,-500.0,0.00013698,2]
[329938116,1718848247880,-501.09843657,0.00013698,2]
[329938117,1718848247889,-502.63252275,0.00013698,2]
[329938118,1718848247899,-504.20410119,0.00013698,2]
[329938119,1718848247907,-169.26349684,0.00013698,2]
[329938120,1718848247917,-500.0,0.00013698,2]
[329938121,1718848247926,-531.1718669,0.00013698,2]
[329938122,1718848247936,-503.40068836,0.00013698,2]
[329938123,1718848247946,-506.61044175,0.00013698,2]
[329938124,1718848247956,-505.61188057,0.00013698,2]
[329938125,1718848247966,-500.0,0.00013698,2]
[329938126,1718848247977,-506.02945489,0.00013698,2]
[329938127,1718848247987,-505.7182413,0.00013698,2]
[329938128,1718848247996,-504.4677626,0.00013698,2]
[329938129,1718848248006,-501.00876335,0.00013698,2]
[329938130,1718848248015,-543.47776328,0.00013698,2]
[329938131,1718848248027,-504.32916325,0.00013698,2]
[329938132,1718848248039,-502.64959428,0.00013698,2]
[329938133,1718848248048,-505.43238779,0.00013698,2]
[329938134,1718848248057,-509.49315262,0.00013698,2]
[329938135,1718848248067,-502.2372577,0.00013698,2]
[329938136,1718848248075,-503.22366724,0.00013698,2]
[329938137,1718848248085,-868.21,0.00013698,2]
[329938138,1718848248095,-1368.21,0.00013698,2]
[329938139,1718848248104,-7034.66,0.00013698,2]
[329938140,1718848248114,-507.2165907,0.00013698,2]
[329938141,1718848248125,-504.15038337,0.00013698,2]
[329938142,1718848248134,-505.6566928,0.00013698,2]
[329938143,1718848248144,-511.55182454,0.00013698,2]
[329938144,1718848248154,-503.08117817,0.00013698,2]
[329938145,1718848248165,-504.69513661,0.00013698,2]
[329938146,1718848248174,-1283.83,0.00013698,2]
[329938147,1718848248184,-583.41292544,0.00013698,2]
[329938148,1718848248195,-508.46148515,0.00013698,2]
[329938149,1718848248205,-505.89417548,0.00013698,2]
[329938150,1718848248216,-510.90319017,0.00013698,2]
[329938151,1718848248227,-179.1831138,0.00013698,2]
[329938152,1718848248236,-506.63584426,0.00013698,2]
[329938153,1718848248245,-512.2824246,0.00013698,2]
[329938154,1718848248255,-503.76577791,0.00013698,2]
[329938155,1718848248264,-510.41870449,0.00013698,2]
[329938156,1718848248274,-502.51944163,0.00013698,2]
[329938157,1718848248283,-501.20511422,0.00013698,2]
[329938158,1718848248294,-506.72800547,0.00013698,2]
[329938159,1718848248303,-500.0,0.00013698,2]
[329938160,1718848248312,-631.1,0.00013698,2]
[329938161,1718848248321,-506.45358693,0.00013698,2]
[329938162,1718848248331,-506.72042494,0.00013698,2]
[329938163,1718848248340,-506.0668071,0.00013698,2]
[329938164,1718848248352,-512.29721763,0.00013698,2]
[329938165,1718848248363,-503.73414835,0.00013698,2]
[329938166,1718848248372,-500.0,0.00013698,2]
[329938167,1718848248382,-500.0,0.00013698,2]
[329938168,1718848248391,-501.23716145,0.00013698,2]
[329938169,1718848248400,-505.73487714,0.00013698,2]
[329938170,1718848248409,-500.0,0.00013698,2]
[329938171,1718848248419,-1470.18,0.00013698,2]
[329938172,1718848248428,-2913.5,0.00013698,2]
[329938173,1718848248438,-598.07446442,0.00013698,2]
[329938174,1718848248448,-504.62486738,0.00013698,2]
[329938175,1718848248460,-501.01167238,0.00013698,2]
[329938176,1718848248469,-501.16815852,0.00013698,2]
[329938177,1718848248482,-500.77372729,0.00013698,2]
[329938178,1718848248491,-501.12399929,0.00013698,2]
[329938179,1718848248501,-503.72878418,0.00013698,2]
[329938180,1718848248511,-502.38610928,0.00013698,2]
[329938181,1718848248521,-504.15670159,0.00013698,2]
[329938182,1718848248534,-307.51004321,0.00013698,2]
[329938183,1718848248544,-507.81142775,0.00013698,2]
[329938184,1718848248554,-501.32680018,0.00013698,2]
[329938185,1718848248564,-504.18091388,0.00013698,2]
[329938186,1718848248574,-500.00773957,0.00013698,2]
[329938187,1718848248584,-509.29431833,0.00013698,2]
[329938188,1718848248594,-501.67705696,0.00013698,2]
[329938189,1718848248603,-509.30639732,0.00013698,2]
[329938190,1718848248613,-504.37240237,0.00013698,2]
[329938191,1718848248622,-501.34200365,0.00013698,2]
[329938192,1718848248631,-500.0,0.00013698,2]
[329938193,1718848248641,-507.52053915,0.00013698,2]
[329938194,1718848248651,-6081.42,0.00013698,2]
[329938195,1718848248660,-1367.16,0.00013698,2]
[329938196,1718848248669,-507.6179715,0.00013698,2]
[329938197,1718848248679,-500.0,0.00013698,2]
[329938198,1718848248688,-184.53643851,0.00013698,2]
[329938199,1718848248698,-506.14987498,0.00013698,2]
[329938200,1718848248708,-500.0,0.00013698,2]
[329938201,1718848248718,-506.60548258,0.00013698,2]
[329938202,1718848248727,-936.58,0.00013698,2]
[329938203,1718848248739,-500.87607649,0.00013698,2]
[329938204,1718848248748,-1276.15,0.00013698,2]
[329938205,1718848248757,-501.0619986,0.00013698,2]
[329938206,1718848248767,-505.85660998,0.00013698,2]
[329938207,1718848248776,-500.91978981,0.00013698,2]
[329938208,1718848248786,-508.25680951,0.00013698,2]
[329938209,1718848248795,-184.60882643,0.00013698,2]
[329938210,1718848248805,-502.14946321,0.00013698,2]
[329938211,1718848248814,-505.72853247,0.00013698,2]
[329938212,1718848248824,-500.67417969,0.00013698,2]
[329938213,1718848248833,-503.07311091,0.00013698,2]
[329938214,1718848248842,-504.01106381,0.00013698,2]
[329938215,1718848248852,-501.20910561,0.00013698,2]
[329938216,1718848248861,-504.93710816,0.00013698,2]
[329938217,1718848248872,-500.0,0.00013698,2]
[329938218,1718848248881,-1703.35,0.00013698,2]
[329938219,1718848248891,-501.08638769,0.00013698,2]
[329938220,1718848248901,-500.47184451,0.00013698,2]
[329938221,1718848248911,-892.33,0.00013698,2]
[329938222,1718848248920,-507.54419806,0.00013698,2]
[329938223,1718848248930,-899.67,0.00013698,2]
[329938224,1718848248940,-500.0,0.00013698,2]
[329938225,1718848248950,-500.0,0.00013698,2]
[329938226,1718848248960,-500.0,0.00013698,2]
[329938227,1718848248970,-501.34793971,0.00013698,2]
[329938228,1718848248979,-12052.95,0.00013698,2]
[329938229,1718848248989,-500.0,0.00013698,2]
[329938230,1718848248999,-508.2394475,0.00013698,2]
[329938231,1718848249009,-502.5215407,0.00013698,2]
[329938232,1718848249018,-511.17655537,0.00013698,2]
[329938233,1718848249027,-400.29971214,0.00013698,2]
[329938234,1718848249037,-500.0,0.00013698,2]
[329938235,1718848249047,-806.13,0.00013698,2]
[329938236,1718848249058,-509.17318926,0.00013698,2]
[329938237,1718848249068,-509.59473794,0.00013698,2]
[329938238,1718848249078,-501.93603107,0.00013698,2]
[329938239,1718848249088,-502.18774805,0.00013698,2]
[329938240,1718848249097,-511.76088275,0.00013698,2]
[329938241,1718848249107,-500.97916874,0.00013698,2]
[329938242,1718848249118,-501.76742089,0.00013698,2]
[329938243,1718848249127,-956.66,0.00013698,2]
[329938244,1718848249138,-525.5,0.00013698,2]
[329938245,1718848249148,-503.38031837,0.00013698,2]
[329938246,1718848249157,-1199.86,0.00013698,2]
[329938247,1718848249168,-503.45768395,0.00013698,2]
[329938248,1718848249179,-502.46634306,0.00013698,2]
[329938249,1718848249188,-501.90166316,0.00013698,2]
[329938250,1718848249198,-1263.32,0.00013698,2]
[329938251,1718848249208,-506.65798414,0.00013698,2]
[329938252,1718848249218,-500.0,0.00013698,2]
[329938253,1718848249228,-500.86822133,0.00013698,2]
[329938254,1718848249238,-506.265039,0.00013698,2]
[329938255,1718848249247,-508.00167541,0.00013698,2]